bitfinex/quotes_ETHUSD_20240717
["timestamp","ask_amount","ask_price","bid_price","bid_amount"]
[1721205966515,2.86642,3488.7,3488.0,2.86694]
[1721205966726,2.86626,3488.9,3488.1,0.55]
[1721205966884,2.86626,3488.9,3488.1,3.41687]
[1721205967929,2.86618,3489.0,3488.1,3.41687]
[1721205967930,2.86631,3488.8,3488.1,3.41687]
[1721205969010,2.86607,3489.1,3488.4,2.86662]
[1721205969317,7.43,3489.9,3488.5,5.9896]
[1721205969517,2.86522,3490.2,3489.3,2.86585]
[1721205969754,2.86522,3490.2,3489.4,0.55]
[1721205969929,2.86522,3490.2,3489.4,3.4158]
[1721205970103,2.4598,3490.3,3489.5,2.86568]
[1721205970104,5.32488,3490.3,3489.5,2.86568]
[1721205970305,8.19004,3490.3,3489.6,0.55]
[1721205970500,7.37388634,3491.3,3489.6,3.41557]
[1721205970501,2.86495,3490.5,3489.6,3.41557]
[1721205970745,2.86505,3490.4,3489.6,6.28115]
[1721205971108,2.86505,3490.4,3489.7,2.86556]
[1721205971413,2.86505,3490.4,3489.8,0.55]
[1721205972643,2.86512,3490.3,3489.7,0.55]
[1721205973056,2.86517,3490.2,3489.7,0.55]
[1721205973206,2.86517,3490.2,3489.5,2.86571]
[1721205973207,2.86517,3490.2,3489.6,0.55]
[1721205973549,2.86506,3490.4,3489.6,0.55]
[1721205973705,2.8651,3490.3,3489.6,0.55]
[1721205973902,2.8651,3490.3,3489.6,3.41565]
[1721205975045,2.86484,3490.6,3489.8,2.86549]
[1721205975248,2.4981,3490.7,3489.9,0.60729937]
[1721205975431,0.44931096,3490.8,3490.0,2.86525]
[1721205975607,0.44931096,3490.8,3490.1,0.55]
[1721205976163,0.44931096,3490.8,3490.6,2.86476]
[1721205976450,5.13606,3491.5,3490.7,0.55]
[1721205976653,2.86419,3491.4,3490.7,3.41475]
[1721205977632,2.86396,3491.7,3490.8,2.86466]
[1721205977927,3.31300531,3491.9,3490.7,0.55]
[1721205977928,0.44920531,3491.9,3491.1,2.86436]
[1721205978144,0.44920531,3491.9,3490.9,5.3716]
[1721205978145,0.44920531,3491.9,3491.6,2.86401]
[1721205978392,2.86319,3492.6,3491.7,2.86391]
[1721205978533,2.86328,3492.5,3491.8,0.55]
[1721205979259,2.86336,3492.4,3491.8,0.55]
[1721205979427,2.86346,3492.3,3491.6,0.55]
[1721205979631,2.86346,3492.3,3491.6,3.414]
[1721205979860,2.86346,3492.3,3491.6,0.55]
[1721205980161,2.86346,3492.3,3491.5,3.41403]
[1721205980664,2.86346,3492.3,3491.6,2.86401]
[1721205980812,2.86346,3492.3,3491.7,0.55]
[1721205981269,2.86336,3492.4,3491.7,0.55]
[1721205981551,2.86353,3492.2,3491.7,0.55]
[1721205981763,2.86336,3492.4,3491.6,3.414]
[1721205982222,2.86344,3492.3,3491.6,3.414]
[1721205984132,2.86356,3492.2,3491.6,0.55]
[1721205984319,2.86344,3492.3,3491.5,2.86404]
[1721205984675,0.44911408,3492.8,3491.4,0.55]
[1721205984676,0.44911408,3492.8,3492.1,2.86352]
[1721205984963,2.86262,3493.3,3492.3,2.86344]
[1721205985258,2.86262,3493.3,3492.4,0.55]
[1721205985462,2.86246,3493.5,3492.6,2.86313]
[1721205985616,2.86254,3493.4,3492.7,0.55]
[1721205985820,2.8626,3493.4,3492.7,3.41311]
[1721205986025,2.8626,3493.4,3492.7,0.55]
[1721205986271,2.8627,3493.2,3492.7,0.55]
[1721205986471,2.8627,3493.2,3492.5,0.55]
[1721205986772,2.86278,3493.1,3492.5,0.55]
[1721205986974,2.86267,3493.3,3492.5,3.41324]
[1721205987327,2.8625,3493.5,3492.6,2.86316]
[1721205987536,3.0,3493.4,3492.7,0.55]
[1721205987777,2.86226,3493.8,3492.9,2.86294]
[1721205987937,2.86226,3493.8,3493.0,0.55]
[1721205988265,2.86226,3493.8,3493.0,3.41285]
[1721205988688,2.86229,3493.7,3493.0,3.41285]
[1721205988990,2.86219,3493.9,3493.0,3.41285]
[1721205989195,2.86219,3493.9,3493.1,2.92001773]
[1721205989403,2.86219,3493.9,3493.2,0.55]
[1721205989567,2.86206,3494.0,3493.2,3.41266]
[1721205990592,2.86216,3493.9,3493.2,3.41266]
[1721205992389,2.3996,3495.1,3493.3,5.35634229]
[1721205992593,2.86149,3494.7,3493.8,2.86221]
[1721205992978,2.86169,3494.5,3493.9,0.55]
[1721205993410,2.86174,3494.4,3493.9,0.55]
[1721205993575,2.86205,3494.0,3493.2,7.36]
[1721205993899,2.86205,3494.0,3493.3,0.55]
[1721205994096,2.86205,3494.0,3493.3,3.41261]
[1721205994875,2.86205,3494.0,3493.3,3.4126]
[1721205995101,2.86197,3494.1,3493.4,2.86253]
[1721205995307,2.86197,3494.1,3493.5,0.55]
[1721205995597,2.416,3495.0,3493.5,0.55]
[1721205995598,2.86164,3494.5,3493.6,2.86229]
[1721205995776,2.86164,3494.5,3493.7,3.41228]
[1721205995974,2.86138,3494.9,3493.8,2.91943484]
[1721205996175,2.86138,3494.9,3494.0,2.86198]
[1721205996379,2.8614,3494.8,3494.1,2.86189]
[1721205996581,2.86138,3494.9,3494.2,0.55]
[1721205997268,2.8615,3494.7,3494.2,0.55]
[1721205997467,2.86165,3494.5,3494.0,0.55]
[1721205997776,2.86149,3494.7,3493.8,2.8622]
[1721205997976,2.86108,3495.2,3494.0,2.2841]
[1721205998175,2.86147,3494.8,3494.0,2.86203]
[1721205998479,2.8615,3494.7,3494.1,0.55]
[1721205999070,2.86137,3494.9,3494.1,3.41195]
[1721205999381,2.86123,3495.0,3494.3,2.86179]
[1721205999576,2.4982,3495.8,3494.1,0.55]
[1721205999808,2.86146,3494.8,3494.1,0.55]
[1721206000109,2.86099,3495.3,3494.1,0.55]
[1721206000110,2.86126,3495.0,3494.1,0.55]
[1721206000309,2.86144,3494.8,3494.1,0.55]
[1721206000615,2.86116,3495.1,3494.3,2.86178]
[1721206000769,2.86116,3495.1,3494.4,0.55]
[1721206001331,2.86106,3495.2,3494.4,3.41171]
[1721206001697,2.86115,3495.1,3494.4,3.41171]
[1721206002022,2.86102,3495.3,3494.4,3.41171]
[1721206002187,2.8609,3495.4,3494.6,2.8615]
[1721206002519,2.8609,3495.4,3494.7,3.41144]
[1721206003202,2.861,3495.3,3494.7,0.55]
[1721206003395,3.30963184,3495.3,3494.5,0.55]
[1721206003598,2.71262814,3495.3,3494.5,0.55]
[1721206003938,2.86136,3494.9,3494.5,0.55]
[1721206004114,2.86119,3495.1,3494.2,0.55]
[1721206004422,2.86137,3494.9,3494.2,0.55]
[1721206004938,2.86118,3495.1,3494.2,0.55]
[1721206005087,2.86128,3495.0,3494.2,3.41185]
[1721206005283,2.86128,3495.0,3494.2,0.55]
[1721206005512,2.86128,3495.0,3494.0,2.86198]
[1721206005513,2.86148,3494.7,3494.1,0.55]
[1721206005989,2.86136,3494.9,3494.1,3.41191]
[1721206006288,2.8614,3494.8,3494.1,3.41191]
[1721206006593,2.86126,3495.0,3494.3,2.86179]
[1721206006794,2.86126,3495.0,3494.4,0.55]
[1721206007328,3.30962184,3495.3,3494.4,0.55]
[1721206007532,3.30962184,3495.3,3494.2,4.721]
[1721206007533,3.30962184,3495.3,3494.3,2.9059]
[1721206007896,3.30962184,3495.3,3494.6,2.86155]
[1721206008083,3.30962184,3495.3,3494.7,0.55]
[1721206008631,3.30963184,3495.3,3494.7,0.55]
[1721206008987,0.44863184,3495.3,3494.7,0.55]
[1721206009220,0.44863184,3495.3,3495.0,2.86115]
[1721206009490,0.44863184,3495.3,3495.1,3.41114]
[1721206009800,0.44863184,3495.3,3495.1,0.55]
[1721206010018,0.44863184,3495.3,3495.0,0.55]
[1721206010192,0.44863184,3495.3,3495.0,3.41122]
[1721206010394,0.44863184,3495.3,3495.0,0.55]
[1721206010625,0.44863184,3495.3,3494.9,3.41128]
[1721206010829,0.44863184,3495.3,3495.0,2.86119]
[1721206011133,0.44863184,3495.3,3495.1,0.55]
[1721206011342,2.86026,3496.2,3495.5,2.86077]
[1721206011501,2.3787,3496.5,3495.2,5.4876]
[1721206011502,2.86014,3496.4,3495.6,3.41073]
[1721206011706,2.86017,3496.3,3495.6,0.55]
[1721206011927,2.86031,3496.2,3495.5,0.55]
[1721206012099,2.85979,3496.8,3495.2,5.32764]
[1721206012416,2.85979,3496.8,3494.6,7.36]
[1721206012417,2.86093,3495.4,3494.6,7.36]
[1721206012602,2.86067,3495.7,3494.9,2.86127]
[1721206012803,5.7214,3495.7,3494.9,2.86127]
[1721206013039,2.86067,3495.7,3494.9,2.86127]
[1721206013391,2.86074,3495.6,3494.9,2.86127]
[1721206013609,2.86074,3495.6,3494.9,2.86126]
[1721206013853,2.86074,3495.6,3495.0,0.55]
[1721206014347,2.86022,3496.3,3495.2,2.2721]
[1721206014506,2.86022,3496.3,3495.4,2.86089]
[1721206014507,2.86039,3496.1,3495.4,2.86089]
[1721206014706,2.86039,3496.1,3495.5,0.55]
[1721206014940,2.86042,3496.0,3495.5,0.55]
[1721206015913,2.86042,3496.0,3495.3,0.55]
[1721206016218,2.86042,3496.0,3495.3,3.41096]
[1721206016742,2.86042,3496.0,3495.3,0.55]
[1721206016950,2.3512,3496.5,3494.8,2.4986]
[1721206016951,2.86079,3495.6,3494.8,2.4986]
[1721206017104,2.86079,3495.6,3494.6,2.86155]
[1721206017105,2.86097,3495.4,3494.6,2.86155]
[1721206017451,2.86115,3495.1,3494.4,2.4813]
[1721206017614,2.86115,3495.1,3494.4,5.4813]
[1721206018325,2.86156,3494.6,3493.8,7.36]
[1721206018559,2.86177,3494.4,3493.5,2.86244]
[1721206018759,2.86177,3494.4,3493.6,2.86237]
[1721206018991,2.86181,3494.3,3493.5,3.021]
[1721206019148,2.86197,3494.1,3493.4,5.32201]
[1721206019646,2.86197,3494.1,3493.5,2.86244]
[1721206020281,2.86197,3494.1,3493.2,10.2227]
[1721206020282,2.86205,3494.0,3493.2,10.2227]
[1721206020453,2.86205,3494.0,3493.3,2.86258]
[1721206020652,2.86205,3494.0,3493.2,7.36]
[1721206020864,2.86223,3493.8,3492.7,0.60069568]
[1721206021082,2.86239,3493.6,3492.8,5.88397]
[1721206021387,2.86223,3493.8,3493.0,2.86286]
[1721206021553,2.86223,3493.8,3492.9,5.88387]
[1721206021750,2.86223,3493.8,3493.0,2.48834408]
[1721206021948,2.416,3495.0,3493.3,3.021]
[1721206022148,2.86173,3494.4,3493.6,2.86235]
[1721206022355,2.86164,3494.5,3493.7,2.86229]
[1721206022588,2.86174,3494.4,3493.8,0.55]
[1721206022743,2.8618,3494.3,3493.8,0.55]
[1721206022942,2.8618,3494.3,3493.7,0.55]
[1721206023166,2.86164,3494.5,3493.7,3.41228]
[1721206023920,2.86164,3494.5,3493.8,2.86219]
[1721206024218,2.86132,3494.9,3494.1,2.86188]
[1721206024510,2.86132,3494.9,3494.2,0.55]
[1721206025202,2.86132,3494.9,3494.2,3.41187]
[1721206025389,2.86132,3494.9,3494.2,0.55]
[1721206025586,2.86132,3494.9,3494.0,3.41204]
[1721206025790,2.86132,3494.9,3494.2,2.86187]
[1721206025993,2.86132,3494.9,3494.3,0.55]
[1721206026295,2.86082,3495.5,3494.4,2.91893485]
[1721206026464,2.86082,3495.5,3494.5,0.55]
[1721206026465,2.86103,3495.3,3494.5,0.55]
[1721206026667,2.86103,3495.3,3494.5,3.41163]
[1721206026897,2.86108,3495.2,3494.5,3.41163]
[1721206027066,2.86084,3495.5,3494.5,3.41163]
[1721206027269,2.86084,3495.5,3494.7,2.86143]
[1721206027270,2.86097,3495.4,3494.7,2.86143]
[1721206027568,2.86107,3495.2,3494.8,0.55]
[1721206027964,2.86052,3495.9,3494.6,0.55]
[1721206027965,2.86117,3495.1,3494.6,0.55]
[1721206028179,2.86169,3494.5,3494.2,10.36]
[1721206028379,2.86169,3494.5,3494.2,3.0]
[1721206028685,2.86169,3494.5,3493.8,3.0]
[1721206029063,2.86169,3494.5,3493.8,5.86221]
[1721206029271,2.86149,3494.7,3493.8,5.86221]
[1721206029508,2.86149,3494.7,3493.9,2.48774271]
[1721206029667,2.86125,3495.0,3494.1,3.021]
[1721206029866,2.86132,3494.9,3494.2,3.41181]
[1721206030205,2.86132,3494.9,3494.3,2.86178]
[1721206030422,2.86116,3495.1,3494.4,0.55]
[1721206030600,2.86131,3494.9,3494.4,0.55]
[1721206030793,2.86116,3495.1,3494.3,2.86179]
[1721206030981,2.86123,3495.0,3494.4,0.55]
[1721206031188,2.86116,3495.1,3494.4,0.55]
[1721206031393,2.86097,3495.4,3494.5,2.86161]
[1721206031394,2.86098,3495.3,3494.5,2.86161]
[1721206031701,2.86081,3495.6,3494.6,0.55]
[1721206031909,2.86116,3495.1,3494.4,0.55]
[1721206032512,2.86101,3495.3,3494.5,2.86161]
[1721206032716,2.86101,3495.3,3494.6,0.55]
[1721206032868,2.86084,3495.5,3494.6,0.55]
[1721206033074,2.86105,3495.3,3494.6,0.55]
[1721206033824,2.86105,3495.3,3494.6,3.41155]
[1721206033987,2.86107,3495.2,3494.6,0.55]
[1721206034192,2.86107,3495.2,3494.5,3.55]
[1721206034439,2.86107,3495.2,3494.1,2.86194]
[1721206034440,2.86156,3494.6,3493.9,2.60104352]
[1721206034592,2.86156,3494.6,3494.0,3.0]
[1721206034791,2.86156,3494.6,3493.9,2.86207]
[1721206034991,2.86156,3494.6,3494.0,3.0]
[1721206035192,2.86156,3494.6,3494.0,5.86204]
[1721206035817,2.86156,3494.6,3494.0,3.0]
[1721206036000,2.86156,3494.6,3494.1,0.55]
[1721206036919,2.86166,3494.5,3494.1,0.55]
[1721206037120,2.86166,3494.5,3493.9,0.55]
[1721206037935,2.86204,3494.1,3493.6,7.36]
[1721206038109,2.86126,3495.0,3493.6,7.36]
[1721206038110,2.3561,3494.4,3493.6,7.36]
[1721206038294,2.86229,3493.7,3493.6,7.36]
[1721206038495,2.86212,3494.0,3493.3,2.86259]
[1721206038696,2.86203,3494.1,3493.4,2.86254]
[1721206039008,2.86209,3494.0,3493.3,4.56259]
[1721206039212,2.86197,3494.1,3493.4,2.86253]
[1721206039436,2.86208,3494.0,3493.4,2.86253]
[1721206039597,2.86208,3494.0,3493.5,0.55]
[1721206039793,2.86191,3494.2,3493.5,0.55]
[1721206040311,2.86197,3494.1,3493.5,0.55]
[1721206040516,2.8615,3494.7,3493.6,0.05723868]
[1721206040836,2.86172,3494.4,3493.7,3.41229]
[1721206041037,2.8617,3494.5,3493.8,0.55]
[1721206041237,5.7234,3494.5,3493.8,0.55]
[1721206041449,2.8615,3494.7,3493.8,0.55]
[1721206041617,2.86171,3494.5,3493.8,0.55]
[1721206041799,2.3969,3494.8,3493.8,3.41221]
[1721206042001,2.09602018,3495.8,3493.9,8.2714]
[1721206042002,2.8612,3495.1,3493.9,8.2714]
[1721206042312,2.8612,3495.1,3494.3,2.86175]
[1721206042704,2.8612,3495.1,3494.4,0.55]
[1721206043252,2.4715,3495.8,3494.8,5.88237]
[1721206043411,2.4715,3495.8,3495.2,2.86104]
[1721206043846,2.4715,3495.8,3495.3,0.55]
[1721206045133,5.33209,3495.8,3495.3,0.55]
[1721206045308,5.33209,3495.8,3495.1,3.41113]
[1721206045843,5.33209,3495.8,3495.2,2.86106]
[1721206045996,2.4715,3495.8,3495.3,0.55]
[1721206046210,2.8609,3495.4,3494.7,2.86146]
[1721206046532,2.4715,3495.8,3494.8,6.571]
[1721206046719,5.33207,3495.8,3495.1,2.86106]
[1721206046923,5.33207,3495.8,3495.2,0.55]
[1721206047130,2.86057,3495.8,3495.2,0.55]
[1721206047716,2.86065,3495.7,3495.2,0.55]
[1721206047917,2.86065,3495.7,3495.1,0.55]
[1721206048131,2.86077,3495.6,3495.1,0.55]
[1721206048329,2.86077,3495.6,3494.9,0.55]
[1721206048558,2.86082,3495.5,3494.9,0.55]
[1721206048925,2.86077,3495.6,3494.9,0.55]
[1721206049130,2.86077,3495.6,3494.9,3.41131]
[1721206049355,2.86082,3495.5,3494.9,3.41131]
[1721206049556,2.86082,3495.5,3494.9,0.55]
[1721206049771,2.86082,3495.5,3494.8,3.0]
[1721206049949,2.3513,3496.3,3494.8,3.0]
[1721206050267,2.86071,3495.7,3494.9,2.86131]
[1721206050562,2.86071,3495.7,3495.0,2.86121]
[1721206050969,2.86071,3495.7,3494.8,3.0]
[1721206050970,2.86074,3495.6,3495.1,0.55]
[1721206051179,2.86083,3495.5,3494.9,0.55]
[1721206051486,2.86083,3495.5,3494.7,7.36]
[1721206051487,2.86114,3495.1,3494.7,7.36]
[1721206051642,2.86114,3495.1,3494.4,2.86167]
[1721206051967,2.86114,3495.1,3494.2,10.2218]
[1721206051968,2.86114,3495.1,3494.5,2.86162]
[1721206052284,2.86106,3495.2,3494.5,2.86162]
[1721206052437,2.86049,3495.9,3494.5,2.86162]
[1721206052635,2.86103,3495.3,3494.5,2.86162]
[1721206052841,3.0,3496.1,3494.5,2.86162]
[1721206052842,2.86072,3495.7,3494.7,2.8614]
[1721206053066,2.86061,3495.8,3494.8,3.41133]
[1721206053067,2.86082,3495.6,3494.8,3.41133]
[1721206053273,2.86082,3495.5,3494.8,3.41133]
[1721206053779,2.8609,3495.4,3494.8,0.55]
[1721206053984,2.86104,3495.3,3494.7,0.55]
[1721206054140,2.4378,3495.5,3494.3,0.55]
[1721206054141,2.86123,3495.0,3494.3,0.55]
[1721206054470,2.86123,3495.0,3494.3,6.4118]
[1721206055137,2.86136,3494.9,3494.3,3.55]
[1721206055482,2.86145,3494.8,3493.9,2.86209]
[1721206055642,2.86145,3494.8,3494.0,3.0]
[1721206055973,2.86161,3494.6,3494.0,3.0]
[1721206056677,2.86161,3494.6,3493.9,3.0]
[1721206056678,2.8618,3494.3,3493.9,3.0]
[1721206057179,2.8618,3494.3,3493.4,7.36]
[1721206057180,2.8618,3494.3,3493.6,5.86237]
[1721206057410,2.86198,3494.1,3493.1,1.49282522]
[1721206057538,2.86198,3494.1,3492.9,7.36]
[1721206057539,2.86237,3493.7,3492.9,7.36]
[1721206058048,2.86246,3493.5,3492.9,7.36]
[1721206058480,2.86265,3493.3,3492.9,7.36]
[1721206058670,2.86265,3493.3,3492.5,2.86327]
[1721206058864,2.86259,3493.4,3492.5,2.86321]
[1721206059236,2.86259,3493.4,3492.7,2.86305]
[1721206060046,2.86238,3493.6,3492.7,2.86305]
[1721206060656,2.86249,3493.5,3492.8,2.86302]
[1721206060853,5.11594,3493.7,3492.8,2.86302]
[1721206061056,2.86207,3494.0,3492.9,3.41292]
[1721206061379,2.86241,3493.6,3492.9,3.41292]
[1721206062358,2.86227,3493.8,3492.9,3.41292]
[1721206062769,2.86198,3494.1,3493.0,2.86286]
[1721206062972,2.86198,3494.1,3493.1,0.55]
[1721206063168,2.86198,3494.1,3493.2,2.86265]
[1721206063169,2.86212,3494.0,3493.2,2.86265]
[1721206063354,2.86194,3494.2,3493.3,3.4126]
[1721206063760,2.86194,3494.2,3493.5,2.86243]
[1721206063761,2.86189,3494.2,3493.5,2.86243]
[1721206063957,2.86189,3494.2,3493.6,0.55]
[1721206064471,2.86197,3494.1,3493.6,0.55]
[1721206064674,2.86197,3494.1,3493.5,0.55]
[1721206064675,2.86211,3494.0,3493.5,0.55]
[1721206064888,2.86217,3493.9,3493.3,0.55]
[1721206065050,2.86217,3493.9,3493.2,0.55]
[1721206065600,2.86238,3493.6,3493.2,0.55]
[1721206065882,2.86238,3493.6,3493.1,7.36]
[1721206066559,2.86255,3493.4,3493.1,7.36]
[1721206066767,2.86255,3493.4,3492.8,2.86302]
[1721206067081,2.86255,3493.4,3492.9,3.0]
[1721206067459,2.86283,3493.1,3492.6,7.36]
[1721206069889,2.86289,3493.0,3492.6,7.36]
[1721206070102,2.86345,3492.3,3492.1,7.36]
[1721206070260,2.86345,3492.3,3491.5,7.36]
[1721206070459,2.86345,3492.3,3491.5,10.22409]
[1721206070681,2.86345,3492.3,3491.5,7.36]
[1721206070887,2.86345,3492.3,3491.5,10.22409]
[1721206071074,2.86345,3492.3,3491.6,2.86397]
[1721206071494,5.25479,3492.5,3491.7,2.86392]
[1721206071816,5.25479,3492.5,3491.5,10.22409]
[1721206072098,2.86367,3492.1,3491.2,2.86428]
[1721206072308,2.86367,3492.1,3491.3,2.86425]
[1721206072661,2.86418,3491.4,3490.5,2.86486]
[1721206072864,2.86418,3491.4,3490.7,2.86475]
[1721206073458,2.86418,3491.4,3490.5,2.86486]
[1721206073662,2.86418,3491.4,3490.6,2.86477]
[1721206074290,2.86418,3491.4,3490.7,2.86474]
[1721206074596,2.86402,3491.6,3490.8,0.55]
[1721206074597,2.86426,3491.3,3490.8,0.55]
[1721206075179,2.86426,3491.3,3490.7,0.55]
[1721206076059,2.86426,3491.3,3490.5,0.55]
[1721206076693,2.86461,3490.9,3490.1,7.36]
[1721206076967,2.86461,3490.9,3490.0,2.8653]
[1721206077280,2.86461,3490.9,3490.2,2.86514]
[1721206078069,5.72897,3491.1,3490.3,2.86508]
[1721206078268,2.86459,3490.9,3490.4,0.55]
[1721206078794,2.86459,3490.9,3490.2,0.55]
[1721206079365,2.86469,3490.8,3490.2,0.55]
[1721206079570,2.86475,3490.7,3490.0,0.55]
[1721206080295,2.86475,3490.7,3490.0,3.41532]
[1721206080497,2.86475,3490.7,3490.0,0.55]
[1721206080696,2.86475,3490.7,3489.9,0.55]
[1721206080697,2.86486,3490.6,3489.9,0.55]
[1721206081011,2.86503,3490.4,3489.8,0.55]
[1721206081164,2.86503,3490.4,3489.7,7.36]
[1721206081165,2.865,3490.4,3489.7,7.36]
[1721206081371,2.86517,3490.2,3489.7,7.36]
[1721206081581,2.86526,3490.1,3489.7,7.36]
[1721206082002,2.86526,3490.1,3488.8,2.39443424]
[1721206082003,2.86555,3489.8,3488.9,2.8662]
[1721206082205,2.86547,3489.9,3489.0,2.8661]
[1721206083158,2.3074,3490.7,3488.8,4.721]
[1721206083441,2.3074,3490.7,3489.5,2.86573]
[1721206083442,2.865,3490.4,3489.5,2.86573]
[1721206083760,2.86508,3490.3,3489.5,2.86573]
[1721206083938,2.86508,3490.3,3489.3,2.86582]
[1721206083939,0.23074,3490.6,3489.8,2.86547]
[1721206084245,0.253814,3490.5,3489.8,0.05730243]
[1721206084403,3.09558,3490.6,3489.9,3.4154]
[1721206084609,2.86494,3490.5,3489.9,0.55]
[1721206084913,3.09558,3490.6,3489.8,0.55]
[1721206084914,2.865,3490.4,3489.8,0.55]
[1721206085258,2.865,3490.4,3489.7,0.55]
[1721206085402,0.309558,3490.5,3489.8,2.86548]
[1721206085754,2.86494,3490.5,3489.9,0.55]
[1721206085905,2.86494,3490.5,3489.7,3.41555]
[1721206086235,2.86501,3490.4,3489.7,0.55]
[1721206086536,5.4594,3491.2,3489.6,2.8656]
[1721206086537,2.86475,3490.7,3489.6,2.8656]
[1721206086851,0.572936,3490.6,3489.7,0.60730328]
[1721206087001,2.86451,3491.0,3490.1,2.86518]
[1721206087204,0.832391,3490.9,3490.2,2.86514]
[1721206087499,0.832391,3490.9,3489.8,10.22549]
[1721206087500,2.86483,3490.6,3489.8,10.22549]
[1721206087729,0.286483,3490.5,3489.9,3.41539]
[1721206088000,3.151413,3490.5,3489.9,0.55]
[1721206088419,2.86501,3490.4,3489.9,0.55]
[1721206088617,2.86501,3490.4,3489.8,7.36]
[1721206088802,0.286483,3490.5,3489.8,10.22548]
[1721206089008,0.3151313,3490.4,3489.8,10.22548]
[1721206089540,2.86501,3490.4,3489.8,7.36]
[1721206090456,2.86476,3490.7,3489.8,10.22548]
[1721206090745,2.86479,3490.7,3489.9,0.55]
[1721206090961,2.86492,3490.5,3489.9,0.55]
[1721206091332,2.86479,3490.7,3489.9,3.4154]
[1721206091518,2.86484,3490.6,3489.9,3.4154]
[1721206091713,0.832391,3490.9,3489.9,3.4154]
[1721206091714,0.832391,3490.9,3489.9,0.55]
[1721206091914,2.4594,3491.2,3490.4,2.86498]
[1721206092153,2.3124,3491.8,3490.9,2.86458]
[1721206092357,2.3124,3491.8,3491.0,2.8645]
[1721206092658,2.3124,3491.8,3491.2,2.86433]
[1721206092868,0.517618,3491.7,3491.2,2.92161074]
[1721206093015,0.517618,3491.7,3490.5,13.24486]
[1721206093016,2.262,3492.3,3491.6,2.86399]
[1721206093217,5.12549,3492.3,3491.4,2.86411]
[1721206093421,2.86375,3492.0,3491.3,0.55]
[1721206093641,2.86387,3491.8,3491.2,7.36]
[1721206093825,0.286375,3491.9,3491.2,7.36]
[1721206093826,0.286375,3491.9,3491.3,3.41422]
[1721206094318,0.286375,3491.9,3491.4,2.86412]
[1721206094654,5.12545,3492.3,3491.3,0.55]
[1721206094819,2.86353,3492.2,3491.5,2.86406]
[1721206095013,2.262,3492.3,3491.6,0.55]
[1721206095216,2.262,3492.3,3491.6,3.41401]
[1721206095639,5.12544,3492.3,3491.6,0.55]
[1721206095966,5.12544,3492.3,3491.5,3.41409]
[1721206096464,2.86361,3492.1,3491.5,0.55]
[1721206096627,0.798914,3492.0,3491.5,0.55]
[1721206096820,0.798914,3492.0,3491.5,2.86409]
[1721206097016,2.86353,3492.2,3491.5,2.86409]
[1721206097443,2.262,3492.3,3491.5,2.86409]
[1721206097847,2.86322,3492.6,3491.5,2.86409]
[1721206098067,2.86328,3492.5,3491.7,2.86392]
[1721206098339,3.736,3492.4,3491.8,0.55]
[1721206098774,2.86344,3492.3,3491.6,0.55]
[1721206099528,2.86344,3492.3,3491.6,3.41401]
[1721206099726,2.86362,3492.1,3491.2,7.36]
[1721206100032,5.30008,3491.9,3491.2,7.36]
[1721206100365,2.4363,3491.9,3491.2,7.36]
[1721206100570,2.86377,3491.9,3491.2,10.22433]
[1721206101790,0.286362,3492.0,3491.2,10.22433]
[1721206101989,0.286362,3492.0,3491.3,0.55]
[1721206102272,0.3149972,3491.9,3491.3,3.41424]
[1721206102966,2.3812,3492.3,3491.3,0.55]
[1721206103179,2.86337,3492.4,3491.6,2.86394]
[1721206103462,2.86337,3492.4,3491.7,0.55]
[1721206103776,0.572671,3492.3,3491.7,0.55]
[1721206104073,2.86371,3492.0,3491.3,2.86424]
[1721206104263,2.86371,3492.0,3491.4,0.55]
[1721206104774,2.86377,3491.9,3491.4,0.55]
[1721206105080,2.86385,3491.8,3491.2,7.36]
[1721206105276,0.286371,3491.9,3491.3,0.55]
[1721206105978,0.286371,3491.9,3491.3,3.41421]
[1721206106292,0.286371,3491.9,3491.2,7.36]
[1721206106293,2.86395,3491.7,3491.2,7.36]
[1721206106587,2.8641,3491.5,3491.2,7.36]
[1721206106736,2.8641,3491.5,3490.8,2.86463]
[1721206106939,2.86395,3491.7,3490.9,2.86458]
[1721206107346,2.86395,3491.7,3491.0,2.8645]
[1721206107553,0.804685,3491.6,3491.0,2.8645]
[1721206107760,3.668705,3491.6,3491.0,2.8645]
[1721206107983,3.668705,3491.6,3491.1,0.55]
[1721206108188,0.8851755,3491.5,3490.9,3.41458]
[1721206108487,0.8851755,3491.5,3491.1,2.86442]
[1721206108697,5.18301,3491.8,3491.2,0.55]
[1721206109353,2.86386,3491.8,3491.2,3.41434]
[1721206109663,0.286386,3491.7,3491.2,3.41434]
[1721206110063,0.286386,3491.7,3491.2,0.55]
[1721206110262,0.286386,3491.7,3491.0,3.4145]
[1721206112084,0.286386,3491.7,3491.0,0.55]
[1721206112385,2.86409,3491.6,3490.9,0.55]
[1721206112688,0.5728,3491.5,3490.9,3.41458]
[1721206117393,2.268,3492.2,3490.9,2.25]